[Event "Titled Tuesday Blitz June 20 Late 2023"]
[White "Rian, Kapriaga"]
[Black "Thiel, Thomas"]
[WhiteFideId "7103263"]
[BlackFideId "4615964"]
[WhiteElo "2335"]
[BlackElo "2200"]
[Result "1-0"]
[Round "8"]
[TimeControl "180+2"]
[Date "2023.06.20"]
[WhiteClock "0:00:36"]
[BlackClock "0:00:00"]
[Board "120"]

1. d4 {[%clk 0:02:54]}  d5 {[%clk 0:02:59]} 2. Nf3 {[%clk 0:02:54]}  Nf6 {[%clk 0:02:56]} 3. Bf4 {[%clk 0:02:54]}  c5 {[%clk 0:02:52]} 4. e3 {[%clk 0:02:53]}  Nc6 {[%clk 0:02:51]} 5. Nbd2 {[%clk 0:02:50]}  Qb6 {[%clk 0:02:49]} 6. dxc5 {[%clk 0:02:49]}  Qxc5 {[%clk 0:02:47]} 7. Be2 {[%clk 0:02:45]}  Bf5 {[%clk 0:02:43]} 8. c4 {[%clk 0:02:45]}  e6 {[%clk 0:02:38]} 9. O-O {[%clk 0:02:41]}  dxc4 {[%clk 0:02:25]} 10. Nxc4 {[%clk 0:02:39]}  Rd8 {[%clk 0:02:23]} 11. Qb3 {[%clk 0:02:34]}  Qb4 {[%clk 0:02:20]} 12. Qxb4 {[%clk 0:02:23]}  Bxb4 {[%clk 0:02:21]} 13. a3 {[%clk 0:02:18]}  Be7 {[%clk 0:02:19]} 14. b4 {[%clk 0:02:15]}  Nd5 {[%clk 0:02:11]} 15. Bg3 {[%clk 0:02:12]}  Nc3 {[%clk 0:02:07]} 16. Bd1 {[%clk 0:01:52]}  Bd3 {[%clk 0:02:04]} 17. Ncd2 {[%clk 0:01:51]}  Bxf1 {[%clk 0:02:02]} 18. Kxf1 {[%clk 0:01:52]}  Nxd1 {[%clk 0:02:01]} 19. Rxd1 {[%clk 0:01:51]}  O-O {[%clk 0:01:57]} 20. Ke2 {[%clk 0:01:50]}  a5 {[%clk 0:01:47]} 21. b5 {[%clk 0:01:50]}  Na7 {[%clk 0:01:46]} 22. a4 {[%clk 0:01:50]}  Bb4 {[%clk 0:01:42]} 23. Nd4 {[%clk 0:01:42]}  Rd5 {[%clk 0:01:37]} 24. f4 {[%clk 0:01:37]}  Bxd2 {[%clk 0:01:30]} 25. Rxd2 {[%clk 0:01:36]}  Rfd8 {[%clk 0:01:30]} 26. Rc2 {[%clk 0:01:35]}  Nc8 {[%clk 0:01:27]} 27. Be1 {[%clk 0:01:24]}  b6 {[%clk 0:01:24]} 28. Rc6 {[%clk 0:01:16]}  R5d6 {[%clk 0:01:20]} 29. Rc7 {[%clk 0:01:14]}  R6d7 {[%clk 0:01:18]} 30. Rc6 {[%clk 0:01:11]}  Rd6 {[%clk 0:01:17]} 31. Rc7 {[%clk 0:01:11]}  R6d7 {[%clk 0:01:10]} 32. Rc2 {[%clk 0:01:10]}  Rd5 {[%clk 0:00:59]} 33. Rc7 {[%clk 0:01:02]}  Nd6 {[%clk 0:00:56]} 34. Nc6 {[%clk 0:00:59]}  Ne4 {[%clk 0:00:46]} 35. Nxd8 {[%clk 0:00:52]}  Rxd8 {[%clk 0:00:46]} 36. Rb7 {[%clk 0:00:52]}  Nc5 {[%clk 0:00:30]} 37. Rxb6 {[%clk 0:00:51]}  Nxa4 {[%clk 0:00:31]} 38. Ra6 {[%clk 0:00:51]}  Nc5 {[%clk 0:00:26]} 39. Rxa5 {[%clk 0:00:50]}  f5 {[%clk 0:00:26]} 40. b6 {[%clk 0:00:49]}  Nb7 {[%clk 0:00:18]} 41. Rb5 {[%clk 0:00:48]}  Kf7 {[%clk 0:00:16]} 42. Bc3 {[%clk 0:00:46]}  g6 {[%clk 0:00:16]} 43. Bd4 {[%clk 0:00:46]}  Rd5 {[%clk 0:00:13]} 44. Rb2 {[%clk 0:00:45]}  Ra5 {[%clk 0:00:11]} 45. Rc2 {[%clk 0:00:45]}  Nd6 {[%clk 0:00:05]} 46. Rc7+ {[%clk 0:00:43]}  Ke8 {[%clk 0:00:03]} 47. b7 {[%clk 0:00:37]}  Rb5 {[%clk 0:00:00]} 48. Rc8+ {[%clk 0:00:36]} 1-0


[Site "https://www.chess.com"]

[Event "Titled Tuesday Blitz June 20 Late 2023"]
[White "Romero Ruscalleda, Josep"]
[Black "Sainz Aguirre, Ignacio"]
[WhiteFideId "2231859"]
[BlackFideId "5101727"]
[WhiteElo "2183"]
[BlackElo "1889"]
[Result "1-0"]
[Round "8"]
[TimeControl "180+2"]
[Date "2023.06.20"]
[WhiteClock "0:00:47"]
[BlackClock "0:00:00"]
[Board "122"]

1. e4 {[%clk 0:02:56]}  e6 {[%clk 0:01:42]} 2. d4 {[%clk 0:02:54]}  d5 {[%clk 0:01:42]} 3. e5 {[%clk 0:02:54]}  c5 {[%clk 0:01:41]} 4. c3 {[%clk 0:02:54]}  Nc6 {[%clk 0:01:42]} 5. Be3 {[%clk 0:02:54]}  Qb6 {[%clk 0:01:40]} 6. Qd2 {[%clk 0:02:53]}  c4 {[%clk 0:01:41]} 7. g3 {[%clk 0:02:45]}  a5 {[%clk 0:01:40]} 8. Bh3 {[%clk 0:02:39]}  a4 {[%clk 0:01:40]} 9. Ne2 {[%clk 0:02:35]}  a3 {[%clk 0:01:35]} 10. Nxa3 {[%clk 0:02:33]}  Bxa3 {[%clk 0:01:35]} 11. bxa3 {[%clk 0:02:33]}  Rxa3 {[%clk 0:01:35]} 12. O-O {[%clk 0:02:33]}  Nge7 {[%clk 0:01:34]} 13. f4 {[%clk 0:02:30]}  h5 {[%clk 0:01:29]} 14. Kh1 {[%clk 0:02:04]}  h4 {[%clk 0:01:26]} 15. g4 {[%clk 0:02:04]}  g6 {[%clk 0:01:16]} 16. f5 {[%clk 0:01:58]}  exf5 {[%clk 0:01:15]} 17. gxf5 {[%clk 0:01:58]}  Bxf5 {[%clk 0:01:11]} 18. Bxf5 {[%clk 0:01:57]}  Nxf5 {[%clk 0:01:11]} 19. Bg5 {[%clk 0:01:57]}  Nce7 {[%clk 0:00:33]} 20. Rab1 {[%clk 0:01:48]}  Qa6 {[%clk 0:00:30]} 21. Rb2 {[%clk 0:01:48]}  Rh5 {[%clk 0:00:20]} 22. Rfb1 {[%clk 0:01:45]}  b5 {[%clk 0:00:16]} 23. Rxb5 {[%clk 0:01:37]}  Rxa2 {[%clk 0:00:16]} 24. Rb8+ {[%clk 0:01:36]}  Kd7 {[%clk 0:00:15]} 25. R1b7+ {[%clk 0:01:33]}  Kc6 {[%clk 0:00:14]} 26. Rb6+ {[%clk 0:01:24]}  Qxb6 {[%clk 0:00:13]} 27. Rxb6+ {[%clk 0:01:24]}  Kxb6 {[%clk 0:00:14]} 28. Qxa2 {[%clk 0:01:24]}  Rxg5 {[%clk 0:00:14]} 29. Qa3 {[%clk 0:01:14]}  h3 {[%clk 0:00:13]} 30. Qc5+ {[%clk 0:01:11]}  Kb7 {[%clk 0:00:12]} 31. Nf4 {[%clk 0:01:06]}  Rg4 {[%clk 0:00:09]} 32. Nxh3 {[%clk 0:00:57]}  Rh4 {[%clk 0:00:03]} 33. Nf2 {[%clk 0:00:50]}  Ng3+ {[%clk 0:00:01]} 34. Kg2 {[%clk 0:00:48]}  Ne2 {[%clk 0:00:00]} 35. Qxe7+ {[%clk 0:00:47]} 1-0


[Site "https://www.chess.com"]

[Event "Titled Tuesday Blitz June 20 Late 2023"]
[White "Burke, Paul"]
[Black "Ozalp, Burak"]
[WhiteFideId "2605767"]
[BlackFideId "6314210"]
[WhiteElo "1923"]
[BlackElo "2106"]
[Result "0-1"]
[Round "8"]
[TimeControl "180+2"]
[Date "2023.06.20"]
[WhiteClock "0:00:24"]
[BlackClock "0:01:43"]
[Board "124"]

1. e4 {[%clk 0:03:00]}  c5 {[%clk 0:03:00]} 2. Nf3 {[%clk 0:03:00]}  d6 {[%clk 0:03:01]} 3. d4 {[%clk 0:03:00]}  cxd4 {[%clk 0:03:01]} 4. c3 {[%clk 0:03:00]}  d3 {[%clk 0:03:00]} 5. Bxd3 {[%clk 0:03:00]}  Nc6 {[%clk 0:03:00]} 6. Bc4 {[%clk 0:03:00]}  Nf6 {[%clk 0:02:59]} 7. Ng5 {[%clk 0:02:52]}  e6 {[%clk 0:02:59]} 8. Qc2 {[%clk 0:02:31]}  Be7 {[%clk 0:03:00]} 9. O-O {[%clk 0:02:29]}  O-O {[%clk 0:02:56]} 10. f4 {[%clk 0:02:26]}  d5 {[%clk 0:02:52]} 11. exd5 {[%clk 0:02:20]}  exd5 {[%clk 0:02:53]} 12. Bd3 {[%clk 0:02:19]}  d4 {[%clk 0:02:47]} 13. Nxh7 {[%clk 0:02:11]}  dxc3 {[%clk 0:02:44]} 14. Nxf6+ {[%clk 0:02:10]}  Bxf6 {[%clk 0:02:45]} 15. bxc3 {[%clk 0:02:08]}  Nb4 {[%clk 0:02:28]} 16. cxb4 {[%clk 0:01:59]}  Qd4+ {[%clk 0:02:23]} 17. Kh1 {[%clk 0:01:57]}  Qxa1 {[%clk 0:02:24]} 18. Bd2 {[%clk 0:01:30]}  Qb2 {[%clk 0:02:11]} 19. Qxb2 {[%clk 0:01:07]}  Bxb2 {[%clk 0:02:11]} 20. Be4 {[%clk 0:01:05]}  Be6 {[%clk 0:02:07]} 21. a3 {[%clk 0:01:03]}  Rfd8 {[%clk 0:01:58]} 22. h3 {[%clk 0:01:01]}  Ba2 {[%clk 0:01:58]} 23. Bxb7 {[%clk 0:00:54]}  Rab8 {[%clk 0:01:56]} 24. Bc3 {[%clk 0:00:39]}  Bxc3 {[%clk 0:01:43]} 25. Nxc3 {[%clk 0:00:24]}  Bc4 {[%clk 0:01:43]} 0-1


[Site "https://www.chess.com"]

[Event "Titled Tuesday Blitz June 20 Late 2023"]
[White "Gyulamiryan-koryun"]
[Black "KSho99"]
[WhiteElo "1894"]
[BlackElo "2203"]
[Result "0-1"]
[Round "8"]
[TimeControl "180+2"]
[Date "2023.06.20"]
[WhiteClock "0:00:00"]
[BlackClock "0:00:05"]
[Board "126"]

1. e4 {[%clk 0:02:57]}  c6 {[%clk 0:02:58]} 2. Nc3 {[%clk 0:02:55]}  d5 {[%clk 0:02:58]} 3. Nf3 {[%clk 0:02:55]}  dxe4 {[%clk 0:02:53]} 4. Nxe4 {[%clk 0:02:54]}  Nf6 {[%clk 0:02:52]} 5. Ng3 {[%clk 0:02:53]}  h5 {[%clk 0:02:44]} 6. h4 {[%clk 0:02:36]}  Bg4 {[%clk 0:02:43]} 7. Be2 {[%clk 0:02:35]}  e6 {[%clk 0:02:35]} 8. Ne5 {[%clk 0:02:34]}  Bxe2 {[%clk 0:02:34]} 9. Qxe2 {[%clk 0:02:32]}  Nbd7 {[%clk 0:02:34]} 10. d4 {[%clk 0:02:31]}  Qb6 {[%clk 0:02:24]} 11. c3 {[%clk 0:02:30]}  c5 {[%clk 0:02:20]} 12. Nc4 {[%clk 0:02:28]}  Qc7 {[%clk 0:02:13]} 13. Nf5 {[%clk 0:02:10]}  cxd4 {[%clk 0:01:59]} 14. Nxd4 {[%clk 0:02:07]}  Rc8 {[%clk 0:01:56]} 15. b3 {[%clk 0:02:07]}  Bc5 {[%clk 0:01:49]} 16. Nb5 {[%clk 0:02:05]}  Qc6 {[%clk 0:01:39]} 17. O-O {[%clk 0:01:54]}  O-O {[%clk 0:01:35]} 18. Nd4 {[%clk 0:01:43]}  Bxd4 {[%clk 0:01:24]} 19. cxd4 {[%clk 0:01:43]}  Qe4 {[%clk 0:01:24]} 20. Be3 {[%clk 0:01:40]}  Qxh4 {[%clk 0:01:22]} 21. f3 {[%clk 0:01:36]}  Nd5 {[%clk 0:01:12]} 22. Bf2 {[%clk 0:01:35]}  Qg5 {[%clk 0:01:12]} 23. Qe4 {[%clk 0:01:24]}  Nf4 {[%clk 0:01:01]} 24. g3 {[%clk 0:01:20]}  Nh3+ {[%clk 0:00:57]} 25. Kh2 {[%clk 0:01:20]}  Nxf2 {[%clk 0:00:36]} 26. Rxf2 {[%clk 0:01:20]}  Qd5 {[%clk 0:00:33]} 27. Ne3 {[%clk 0:01:10]}  Qxe4 {[%clk 0:00:32]} 28. fxe4 {[%clk 0:01:10]}  Rc3 {[%clk 0:00:32]} 29. Nc4 {[%clk 0:01:05]}  Nf6 {[%clk 0:00:29]} 30. Nd6 {[%clk 0:01:01]}  Ng4+ {[%clk 0:00:27]} 31. Kg2 {[%clk 0:01:01]}  Nxf2 {[%clk 0:00:27]} 32. Kxf2 {[%clk 0:01:01]}  b6 {[%clk 0:00:21]} 33. Nc4 {[%clk 0:00:39]}  Rd8 {[%clk 0:00:20]} 34. Rd1 {[%clk 0:00:37]}  Rc2+ {[%clk 0:00:20]} 35. Ke3 {[%clk 0:00:32]}  Rxa2 {[%clk 0:00:19]} 36. d5 {[%clk 0:00:30]}  exd5 {[%clk 0:00:19]} 37. exd5 {[%clk 0:00:30]}  b5 {[%clk 0:00:14]} 38. Ne5 {[%clk 0:00:27]}  Ra3 {[%clk 0:00:10]} 39. Rd3 {[%clk 0:00:26]}  Ra6 {[%clk 0:00:08]} 40. Nc6 {[%clk 0:00:25]}  Rd6 {[%clk 0:00:07]} 41. Nb4 {[%clk 0:00:20]}  Rab6 {[%clk 0:00:07]} 42. Ke4 {[%clk 0:00:20]}  f6 {[%clk 0:00:04]} 43. Rc3 {[%clk 0:00:15]}  Kh7 {[%clk 0:00:03]} 44. Rc7 {[%clk 0:00:14]}  a5 {[%clk 0:00:03]} 45. Nc6 {[%clk 0:00:13]}  a4 {[%clk 0:00:04]} 46. b4 {[%clk 0:00:10]}  a3 {[%clk 0:00:03]} 47. Ra7 {[%clk 0:00:10]}  Rbxc6 {[%clk 0:00:04]} 48. dxc6 {[%clk 0:00:09]}  Rxc6 {[%clk 0:00:04]} 49. Rxa3 {[%clk 0:00:09]}  Rc4+ {[%clk 0:00:04]} 50. Kf5 {[%clk 0:00:07]}  Rxb4 {[%clk 0:00:05]} 51. Rc3 {[%clk 0:00:01]}  Rg4 {[%clk 0:00:05]} 52. Rb3 {[%clk 0:00:00]}  b4 {[%clk 0:00:05]} 0-1


[Site "https://www.chess.com"]

[Event "Titled Tuesday Blitz June 20 Late 2023"]
[White "Dmitriev, Sergey"]
[Black "Pein, Jonathan"]
[WhiteFideId "14101785"]
[BlackFideId "417092"]
[WhiteElo "2132"]
[BlackElo "2151"]
[Result "0-1"]
[Round "8"]
[TimeControl "180+2"]
[Date "2023.06.20"]
[WhiteClock "0:01:19"]
[BlackClock "0:01:54"]
[Board "127"]

1. d4 {[%clk 0:03:00]}  Nf6 {[%clk 0:02:54]} 2. Nf3 {[%clk 0:03:01]}  g6 {[%clk 0:02:53]} 3. Bf4 {[%clk 0:03:00]}  Bg7 {[%clk 0:02:54]} 4. e3 {[%clk 0:02:58]}  O-O {[%clk 0:02:53]} 5. h3 {[%clk 0:02:58]}  d6 {[%clk 0:02:40]} 6. Nbd2 {[%clk 0:02:58]}  Nbd7 {[%clk 0:02:40]} 7. Be2 {[%clk 0:02:54]}  Qe8 {[%clk 0:02:40]} 8. O-O {[%clk 0:02:52]}  e5 {[%clk 0:02:41]} 9. dxe5 {[%clk 0:02:50]}  dxe5 {[%clk 0:02:41]} 10. Bh2 {[%clk 0:02:50]}  Qe7 {[%clk 0:02:36]} 11. e4 {[%clk 0:02:49]}  Rd8 {[%clk 0:02:36]} 12. c3 {[%clk 0:02:46]}  Nh5 {[%clk 0:02:36]} 13. Qc2 {[%clk 0:02:33]}  a5 {[%clk 0:02:35]} 14. Bc4 {[%clk 0:02:23]}  Nc5 {[%clk 0:02:30]} 15. a3 {[%clk 0:02:17]}  c6 {[%clk 0:02:11]} 16. Rfe1 {[%clk 0:02:13]}  b5 {[%clk 0:02:06]} 17. Ba2 {[%clk 0:02:13]}  Nd3 {[%clk 0:02:07]} 18. Re2 {[%clk 0:02:07]}  Ndf4 {[%clk 0:02:05]} 19. Re3 {[%clk 0:02:04]}  Bh6 {[%clk 0:01:57]} 20. g4 {[%clk 0:01:53]}  Nxh3+ {[%clk 0:01:57]} 21. Kg2 {[%clk 0:01:50]}  Bxg4 {[%clk 0:01:56]} 22. Rd3 {[%clk 0:01:24]}  Rxd3 {[%clk 0:01:53]} 23. Qxd3 {[%clk 0:01:24]}  N3f4+ {[%clk 0:01:53]} 24. Bxf4 {[%clk 0:01:19]}  Nxf4+ {[%clk 0:01:54]} 0-1


[Site "https://www.chess.com"]

[Event "Titled Tuesday Blitz June 20 Late 2023"]
[White "Campos, Maria Jose"]
[Black "Powell, Paul"]
[WhiteFideId "146803"]
[BlackFideId "2005840"]
[WhiteElo "2170"]
[BlackElo "2145"]
[Result "1-0"]
[Round "8"]
[TimeControl "180+2"]
[Date "2023.06.20"]
[WhiteClock "0:00:47"]
[BlackClock "0:00:00"]
[Board "128"]

1. c4 {[%clk 0:03:00]}  Nf6 {[%clk 0:02:58]} 2. g3 {[%clk 0:03:00]}  e6 {[%clk 0:02:57]} 3. Bg2 {[%clk 0:03:00]}  d5 {[%clk 0:02:57]} 4. Nf3 {[%clk 0:03:01]}  Be7 {[%clk 0:02:57]} 5. O-O {[%clk 0:03:01]}  O-O {[%clk 0:02:57]} 6. d4 {[%clk 0:03:02]}  c6 {[%clk 0:02:56]} 7. Qc2 {[%clk 0:03:00]}  Nbd7 {[%clk 0:02:52]} 8. b3 {[%clk 0:03:00]}  b6 {[%clk 0:02:52]} 9. Bb2 {[%clk 0:03:00]}  Bb7 {[%clk 0:02:52]} 10. Nc3 {[%clk 0:03:00]}  Rc8 {[%clk 0:02:48]} 11. e4 {[%clk 0:03:00]}  dxe4 {[%clk 0:02:47]} 12. Nxe4 {[%clk 0:03:01]}  Nxe4 {[%clk 0:02:47]} 13. Qxe4 {[%clk 0:03:01]}  Qc7 {[%clk 0:02:37]} 14. Rad1 {[%clk 0:02:54]}  Nf6 {[%clk 0:02:09]} 15. Qc2 {[%clk 0:02:25]}  Rfd8 {[%clk 0:02:06]} 16. c5 {[%clk 0:02:05]}  bxc5 {[%clk 0:01:56]} 17. dxc5 {[%clk 0:02:05]}  Rxd1 {[%clk 0:01:43]} 18. Rxd1 {[%clk 0:02:05]}  Rd8 {[%clk 0:01:43]} 19. Ne5 {[%clk 0:01:54]}  Rxd1+ {[%clk 0:01:36]} 20. Qxd1 {[%clk 0:01:54]}  Bxc5 {[%clk 0:01:36]} 21. Qc2 {[%clk 0:01:54]}  Qd6 {[%clk 0:01:13]} 22. Nc4 {[%clk 0:01:47]}  Qc7 {[%clk 0:00:59]} 23. Ne5 {[%clk 0:01:31]}  Bd6 {[%clk 0:00:48]} 24. Nxc6 {[%clk 0:01:26]}  Bxc6 {[%clk 0:00:43]} 25. Qxc6 {[%clk 0:01:19]}  Qxc6 {[%clk 0:00:32]} 26. Bxc6 {[%clk 0:01:19]}  Ng4 {[%clk 0:00:32]} 27. Bd4 {[%clk 0:01:13]}  Bb8 {[%clk 0:00:31]} 28. f4 {[%clk 0:01:10]}  Kf8 {[%clk 0:00:20]} 29. Bc5+ {[%clk 0:01:09]}  Kg8 {[%clk 0:00:18]} 30. Kg2 {[%clk 0:01:07]}  h5 {[%clk 0:00:14]} 31. b4 {[%clk 0:01:03]}  f6 {[%clk 0:00:07]} 32. a4 {[%clk 0:01:03]}  Kf7 {[%clk 0:00:07]} 33. b5 {[%clk 0:01:03]}  Nh6 {[%clk 0:00:04]} 34. a5 {[%clk 0:00:58]}  Nf5 {[%clk 0:00:04]} 35. a6 {[%clk 0:00:52]}  Ne7 {[%clk 0:00:04]} 36. Bb7 {[%clk 0:00:51]}  Ke8 {[%clk 0:00:00]} 37. b6 {[%clk 0:00:47]} 1-0


[Site "https://www.chess.com"]

[Event "Titled Tuesday Blitz June 20 Late 2023"]
[White "Winkels, Marcel"]
[Black "Kopacz, Grzegorz"]
[WhiteFideId "1003887"]
[BlackFideId "1109880"]
[WhiteElo "1900"]
[BlackElo "2037"]
[Result "0-1"]
[Round "8"]
[TimeControl "180+2"]
[Date "2023.06.20"]
[WhiteClock "0:00:00"]
[BlackClock "0:00:17"]
[Board "129"]

1. e4 {[%clk 0:03:00]}  c5 {[%clk 0:02:56]} 2. Nf3 {[%clk 0:02:59]}  e6 {[%clk 0:02:55]} 3. d4 {[%clk 0:02:59]}  cxd4 {[%clk 0:02:55]} 4. Nxd4 {[%clk 0:03:00]}  Nc6 {[%clk 0:02:55]} 5. Nc3 {[%clk 0:03:00]}  Qc7 {[%clk 0:02:30]} 6. Be3 {[%clk 0:02:58]}  a6 {[%clk 0:02:24]} 7. Qf3 {[%clk 0:02:57]}  Bd6 {[%clk 0:02:11]} 8. O-O-O {[%clk 0:02:52]}  Be5 {[%clk 0:02:10]} 9. g3 {[%clk 0:02:30]}  Nge7 {[%clk 0:02:03]} 10. Bg2 {[%clk 0:02:19]}  b5 {[%clk 0:02:00]} 11. Kb1 {[%clk 0:01:58]}  Bb7 {[%clk 0:01:54]} 12. Qe2 {[%clk 0:01:46]}  Rc8 {[%clk 0:01:41]} 13. f4 {[%clk 0:01:30]}  Bxd4 {[%clk 0:01:40]} 14. Bxd4 {[%clk 0:01:30]}  Nxd4 {[%clk 0:01:41]} 15. Rxd4 {[%clk 0:01:29]}  Nc6 {[%clk 0:01:42]} 16. Rd2 {[%clk 0:01:21]}  Na5 {[%clk 0:01:29]} 17. Nd5 {[%clk 0:00:55]}  Bxd5 {[%clk 0:01:20]} 18. exd5 {[%clk 0:00:53]}  O-O {[%clk 0:01:16]} 19. d6 {[%clk 0:00:49]}  Qc5 {[%clk 0:01:13]} 20. Rdd1 {[%clk 0:00:20]}  b4 {[%clk 0:01:08]} 21. Rhe1 {[%clk 0:00:18]}  Nc4 {[%clk 0:01:04]} 22. Bf1 {[%clk 0:00:15]}  Nxd6 {[%clk 0:00:40]} 23. Qxa6 {[%clk 0:00:11]}  Qxc2+ {[%clk 0:00:40]} 24. Ka1 {[%clk 0:00:11]}  Nc4 {[%clk 0:00:35]} 25. Bxc4 {[%clk 0:00:08]}  Rxc4 {[%clk 0:00:35]} 26. Rb1 {[%clk 0:00:02]}  b3 {[%clk 0:00:20]} 27. a3 {[%clk 0:00:02]}  d5 {[%clk 0:00:18]} 28. Rec1 {[%clk 0:00:00]}  Qxc1 {[%clk 0:00:17]} 0-1


[Site "https://www.chess.com"]

[Event "Titled Tuesday Blitz June 20 Late 2023"]
[White "Yoo, Christopher Woojin"]
[Black "Paravyan, David"]
[WhiteFideId "30909694"]
[BlackFideId "4194985"]
[WhiteElo "2528"]
[BlackElo "2563"]
[Result "0-1"]
[Round "9"]
[TimeControl "180+2"]
[Date "2023.06.20"]
[WhiteClock "0:00:02"]
[BlackClock "0:01:20"]
[Board "1"]

1. e4 {[%clk 0:03:00]}  e5 {[%clk 0:03:00]} 2. Nf3 {[%clk 0:02:59]}  Nf6 {[%clk 0:03:00]} 3. Nxe5 {[%clk 0:02:54]}  d6 {[%clk 0:03:00]} 4. Nf3 {[%clk 0:02:52]}  Nxe4 {[%clk 0:03:01]} 5. d4 {[%clk 0:02:46]}  d5 {[%clk 0:03:01]} 6. Bd3 {[%clk 0:02:47]}  Bd6 {[%clk 0:03:01]} 7. O-O {[%clk 0:02:48]}  O-O {[%clk 0:03:02]} 8. c4 {[%clk 0:02:48]}  c6 {[%clk 0:03:02]} 9. Re1 {[%clk 0:02:42]}  Bf5 {[%clk 0:03:02]} 10. Qc2 {[%clk 0:02:34]}  Na6 {[%clk 0:02:59]} 11. a3 {[%clk 0:02:33]}  Bg6 {[%clk 0:02:54]} 12. c5 {[%clk 0:02:27]}  Bb8 {[%clk 0:02:46]} 13. b4 {[%clk 0:02:13]}  Nc7 {[%clk 0:02:45]} 14. Nc3 {[%clk 0:02:07]}  Nxc3 {[%clk 0:02:35]} 15. Qxc3 {[%clk 0:02:03]}  Ne6 {[%clk 0:02:28]} 16. Bxg6 {[%clk 0:01:58]}  hxg6 {[%clk 0:02:29]} 17. h4 {[%clk 0:01:31]}  Qf6 {[%clk 0:02:21]} 18. Qd3 {[%clk 0:01:29]}  Bc7 {[%clk 0:02:19]} 19. Rb1 {[%clk 0:01:14]}  Rfe8 {[%clk 0:02:17]} 20. b5 {[%clk 0:01:10]}  Nxd4 {[%clk 0:02:13]} 21. Bg5 {[%clk 0:01:02]}  Nxf3+ {[%clk 0:02:11]} 22. gxf3 {[%clk 0:01:03]}  Qf5 {[%clk 0:02:03]} 23. Qxf5 {[%clk 0:01:00]}  gxf5 {[%clk 0:02:04]} 24. Rxe8+ {[%clk 0:00:56]}  Rxe8 {[%clk 0:02:05]} 25. bxc6 {[%clk 0:00:56]}  bxc6 {[%clk 0:02:05]} 26. Rb7 {[%clk 0:00:57]}  Be5 {[%clk 0:02:05]} 27. Rxa7 {[%clk 0:00:54]}  f6 {[%clk 0:02:02]} 28. Be3 {[%clk 0:00:45]}  f4 {[%clk 0:01:54]} 29. Bd2 {[%clk 0:00:43]}  Bd4 {[%clk 0:01:55]} 30. Bxf4 {[%clk 0:00:41]}  Bxc5 {[%clk 0:01:53]} 31. Rc7 {[%clk 0:00:35]}  Re1+ {[%clk 0:01:43]} 32. Kg2 {[%clk 0:00:34]}  Re2 {[%clk 0:01:43]} 33. Rxc6 {[%clk 0:00:29]}  Bxf2 {[%clk 0:01:41]} 34. Kf1 {[%clk 0:00:28]}  Ra2 {[%clk 0:01:40]} 35. h5 {[%clk 0:00:26]}  Bd4 {[%clk 0:01:38]} 36. Bd6 {[%clk 0:00:17]}  Rf2+ {[%clk 0:01:34]} 37. Ke1 {[%clk 0:00:18]}  Rxf3 {[%clk 0:01:34]} 38. a4 {[%clk 0:00:18]}  Rh3 {[%clk 0:01:33]} 39. Ke2 {[%clk 0:00:15]}  Rxh5 {[%clk 0:01:31]} 40. Kd3 {[%clk 0:00:14]}  Bg1 {[%clk 0:01:30]} 41. a5 {[%clk 0:00:11]}  Rh3+ {[%clk 0:01:28]} 42. Kc2 {[%clk 0:00:12]}  Kf7 {[%clk 0:01:18]} 43. a6 {[%clk 0:00:09]}  g5 {[%clk 0:01:19]} 44. a7 {[%clk 0:00:05]}  Bxa7 {[%clk 0:01:18]} 45. Rc7+ {[%clk 0:00:03]}  Ke6 {[%clk 0:01:19]} 46. Bb4 {[%clk 0:00:02]}  Bd4 {[%clk 0:01:19]} 47. Rc6+ {[%clk 0:00:02]}  Kf5 {[%clk 0:01:20]} 48. Rd6 {[%clk 0:00:02]}  Ke4 {[%clk 0:01:19]} 49. Re6+ {[%clk 0:00:02]}  Be5 {[%clk 0:01:20]} 0-1


[Site "https://www.chess.com"]

[Event "Titled Tuesday Blitz June 20 Late 2023"]
[White "Martinez Alcantara, Jose Eduardo"]
[Black "Rasulov, Vugar"]
[WhiteFideId "3805662"]
[BlackFideId "13402390"]
[WhiteElo "2711"]
[BlackElo "2509"]
[Result "1-0"]
[Round "9"]
[TimeControl "180+2"]
[Date "2023.06.20"]
[WhiteClock "0:00:26"]
[BlackClock "0:00:05"]
[Board "2"]

1. e4 {[%clk 0:03:00]}  c5 {[%clk 0:03:00]} 2. Nf3 {[%clk 0:03:01]}  e6 {[%clk 0:03:00]} 3. c3 {[%clk 0:03:02]}  d5 {[%clk 0:02:58]} 4. e5 {[%clk 0:03:02]}  d4 {[%clk 0:02:58]} 5. g3 {[%clk 0:03:03]}  Bd7 {[%clk 0:02:56]} 6. Bg2 {[%clk 0:03:02]}  Bc6 {[%clk 0:02:57]} 7. O-O {[%clk 0:03:03]}  Ne7 {[%clk 0:02:55]} 8. cxd4 {[%clk 0:03:02]}  cxd4 {[%clk 0:02:55]} 9. d3 {[%clk 0:03:02]}  Ng6 {[%clk 0:02:53]} 10. Nbd2 {[%clk 0:03:02]}  Bc5 {[%clk 0:02:49]} 11. h4 {[%clk 0:03:01]}  Nd7 {[%clk 0:02:46]} 12. Re1 {[%clk 0:03:01]}  h6 {[%clk 0:02:38]} 13. a3 {[%clk 0:02:52]}  a5 {[%clk 0:02:35]} 14. Ne4 {[%clk 0:02:51]}  O-O {[%clk 0:02:23]} 15. h5 {[%clk 0:02:41]}  Ne7 {[%clk 0:02:23]} 16. Bf4 {[%clk 0:02:40]}  Nd5 {[%clk 0:02:20]} 17. Bd2 {[%clk 0:02:41]}  Bb6 {[%clk 0:02:17]} 18. Rc1 {[%clk 0:02:28]}  a4 {[%clk 0:02:16]} 19. Qe2 {[%clk 0:02:15]}  Rc8 {[%clk 0:02:11]} 20. Nd6 {[%clk 0:02:16]}  Ra8 {[%clk 0:02:05]} 21. Nc4 {[%clk 0:02:05]}  Bc5 {[%clk 0:02:03]} 22. Nh2 {[%clk 0:02:05]}  b5 {[%clk 0:01:48]} 23. Nd6 {[%clk 0:01:59]}  Bxd6 {[%clk 0:01:44]} 24. exd6 {[%clk 0:02:00]}  Rc8 {[%clk 0:01:44]} 25. Ng4 {[%clk 0:02:00]}  N7f6 {[%clk 0:01:42]} 26. Nxf6+ {[%clk 0:01:55]}  Qxf6 {[%clk 0:01:42]} 27. Ba5 {[%clk 0:01:34]}  Bd7 {[%clk 0:01:30]} 28. Bc7 {[%clk 0:01:17]}  b4 {[%clk 0:01:20]} 29. axb4 {[%clk 0:00:59]}  Rfe8 {[%clk 0:01:15]} 30. Ba5 {[%clk 0:00:49]}  Qg5 {[%clk 0:01:01]} 31. Rc5 {[%clk 0:00:47]}  Rxc5 {[%clk 0:00:49]} 32. bxc5 {[%clk 0:00:48]}  Rc8 {[%clk 0:00:50]} 33. Bb6 {[%clk 0:00:40]}  Bc6 {[%clk 0:00:35]} 34. Qe5 {[%clk 0:00:29]}  Qd2 {[%clk 0:00:35]} 35. Bxd5 {[%clk 0:00:29]}  exd5 {[%clk 0:00:30]} 36. Qe7 {[%clk 0:00:25]}  Kh7 {[%clk 0:00:24]} 37. Rf1 {[%clk 0:00:24]}  Re8 {[%clk 0:00:13]} 38. Qxf7 {[%clk 0:00:25]}  Re1 {[%clk 0:00:04]} 39. Qf5+ {[%clk 0:00:25]}  Kg8 {[%clk 0:00:04]} 40. Rxe1 {[%clk 0:00:25]}  Qxe1+ {[%clk 0:00:05]} 41. Kg2 {[%clk 0:00:26]}  Bb5 {[%clk 0:00:04]} 42. d7 {[%clk 0:00:24]}  Bxd7 {[%clk 0:00:04]} 43. Qxd7 {[%clk 0:00:25]}  Qe2 {[%clk 0:00:05]} 44. Qxd5+ {[%clk 0:00:25]}  Kh8 {[%clk 0:00:06]} 45. Qa8+ {[%clk 0:00:24]}  Kh7 {[%clk 0:00:06]} 46. Qe4+ {[%clk 0:00:24]}  Qxe4+ {[%clk 0:00:05]} 47. dxe4 {[%clk 0:00:25]}  d3 {[%clk 0:00:06]} 48. Kf3 {[%clk 0:00:26]}  d2 {[%clk 0:00:06]} 49. Ke2 {[%clk 0:00:27]}  a3 {[%clk 0:00:05]} 50. bxa3 {[%clk 0:00:26]} 1-0


[Site "https://www.chess.com"]